[Event "Titled Tuesday Blitz February 01 A 2022"]
[White "Gaehwiler, Gabriel"]
[Black "Makarian, Rudik"]
[WhiteFideId "1314530"]
[BlackFideId "44105681"]
[WhiteElo "2383"]
[BlackElo "2486"]
[Result "0-1"]
[Round "03"]
[TimeControl "180+1"]
[Date "2022.02.01"]
[WhiteClock "0:00:12"]
[BlackClock "0:00:45"]

1. d4 {[%clk 0:03:00]}  Nf6 {[%clk 0:03:00]} 2. c4 {[%clk 0:03:00]}  e6 {[%clk 0:03:00]} 3. g3 {[%clk 0:03:00]}  c5 {[%clk 0:03:00]} 4. Nf3 {[%clk 0:02:59]}  Qa5+ {[%clk 0:03:00]} 5. Qd2 {[%clk 0:02:47]}  Nc6 {[%clk 0:02:57]} 6. Qxa5 {[%clk 0:02:42]}  Nxa5 {[%clk 0:02:58]} 7. b3 {[%clk 0:02:42]}  b6 {[%clk 0:02:56]} 8. Bg2 {[%clk 0:02:42]}  Bb7 {[%clk 0:02:56]} 9. O-O {[%clk 0:02:36]}  cxd4 {[%clk 0:02:47]} 10. Nxd4 {[%clk 0:02:37]}  Bxg2 {[%clk 0:02:46]} 11. Kxg2 {[%clk 0:02:37]}  Nc6 {[%clk 0:02:46]} 12. Bb2 {[%clk 0:02:23]}  Nxd4 {[%clk 0:02:43]} 13. Bxd4 {[%clk 0:02:24]}  Bc5 {[%clk 0:02:43]} 14. Bxf6 {[%clk 0:02:10]}  gxf6 {[%clk 0:02:43]} 15. Rd1 {[%clk 0:02:11]}  f5 {[%clk 0:02:42]} 16. e3 {[%clk 0:02:09]}  Ke7 {[%clk 0:02:42]} 17. Nc3 {[%clk 0:02:06]}  Bb4 {[%clk 0:02:39]} 18. Ne2 {[%clk 0:02:04]}  Bd6 {[%clk 0:02:34]} 19. Rd3 {[%clk 0:01:54]}  Be5 {[%clk 0:02:34]} 20. Rad1 {[%clk 0:01:55]}  Rhd8 {[%clk 0:02:35]} 21. Ng1 {[%clk 0:01:52]}  a6 {[%clk 0:02:33]} 22. f4 {[%clk 0:01:40]}  Bc7 {[%clk 0:02:29]} 23. Nf3 {[%clk 0:01:39]}  b5 {[%clk 0:02:23]} 24. c5 {[%clk 0:01:30]}  a5 {[%clk 0:02:20]} 25. Kf1 {[%clk 0:01:23]}  Rac8 {[%clk 0:02:18]} 26. Nd4 {[%clk 0:01:21]}  Bb8 {[%clk 0:02:15]} 27. c6 {[%clk 0:01:17]}  d5 {[%clk 0:02:15]} 28. Rc1 {[%clk 0:01:02]}  b4 {[%clk 0:02:15]} 29. Nb5 {[%clk 0:01:01]}  Bc7 {[%clk 0:02:12]} 30. Ke2 {[%clk 0:00:58]}  Rg8 {[%clk 0:02:10]} 31. Kf3 {[%clk 0:00:56]}  Kd8 {[%clk 0:02:10]} 32. Rc5 {[%clk 0:00:52]}  Bb6 {[%clk 0:02:08]} 33. Rc2 {[%clk 0:00:51]}  Ke7 {[%clk 0:02:07]} 34. Rdd2 {[%clk 0:00:51]}  h5 {[%clk 0:02:07]} 35. h3 {[%clk 0:00:48]}  Rg7 {[%clk 0:02:03]} 36. c7 {[%clk 0:00:43]}  Kd7 {[%clk 0:02:02]} 37. Rd1 {[%clk 0:00:42]}  Rcg8 {[%clk 0:01:21]} 38. Rg1 {[%clk 0:00:40]}  h4 {[%clk 0:01:20]} 39. g4 {[%clk 0:00:37]}  fxg4+ {[%clk 0:01:21]} 40. hxg4 {[%clk 0:00:38]}  h3 {[%clk 0:01:21]} 41. g5 {[%clk 0:00:36]}  Rc8 {[%clk 0:00:58]} 42. Rgc1 {[%clk 0:00:35]}  Rh7 {[%clk 0:00:56]} 43. Kg3 {[%clk 0:00:29]}  Bxe3 {[%clk 0:00:50]} 44. Re1 {[%clk 0:00:27]}  h2 {[%clk 0:00:46]} 45. Rh1 {[%clk 0:00:12]}  Bg1 {[%clk 0:00:45]} 0-1


[Site "https://www.chess.com"]

[Event "Titled Tuesday Blitz February 01 A 2022"]
[White "Goltsev, Dmitry"]
[Black "Bacrot, Etienne"]
[WhiteFideId "24176710"]
[BlackFideId "605506"]
[WhiteElo "2273"]
[BlackElo "2673"]
[Result "0-1"]
[Round "03"]
[TimeControl "180+1"]
[Date "2022.02.01"]
[WhiteClock "0:00:04"]
[BlackClock "0:00:09"]

1. e4 {[%clk 0:02:59]}  c5 {[%clk 0:03:00]} 2. Nf3 {[%clk 0:02:59]}  d6 {[%clk 0:03:00]} 3. d4 {[%clk 0:02:59]}  cxd4 {[%clk 0:03:00]} 4. Nxd4 {[%clk 0:03:00]}  Nf6 {[%clk 0:03:01]} 5. Nc3 {[%clk 0:03:00]}  Nc6 {[%clk 0:03:01]} 6. Bg5 {[%clk 0:03:00]}  e6 {[%clk 0:03:01]} 7. Qd2 {[%clk 0:02:59]}  a6 {[%clk 0:03:02]} 8. a3 {[%clk 0:02:58]}  Bd7 {[%clk 0:03:01]} 9. Be2 {[%clk 0:02:57]}  Be7 {[%clk 0:02:59]} 10. O-O-O {[%clk 0:02:56]}  Qa5 {[%clk 0:02:44]} 11. h4 {[%clk 0:02:43]}  b5 {[%clk 0:02:34]} 12. f3 {[%clk 0:02:33]}  b4 {[%clk 0:02:30]} 13. Nb1 {[%clk 0:02:32]}  Rb8 {[%clk 0:02:12]} 14. Nb3 {[%clk 0:02:27]}  Qc7 {[%clk 0:01:59]} 15. Bxa6 {[%clk 0:02:23]}  bxa3 {[%clk 0:01:54]} 16. Nxa3 {[%clk 0:02:24]}  Nb4 {[%clk 0:01:34]} 17. Bd3 {[%clk 0:02:14]}  O-O {[%clk 0:01:25]} 18. e5 {[%clk 0:02:08]}  dxe5 {[%clk 0:01:09]} 19. Bxf6 {[%clk 0:02:08]}  Bxf6 {[%clk 0:01:07]} 20. Bxh7+ {[%clk 0:02:09]}  Kxh7 {[%clk 0:01:07]} 21. Qxd7 {[%clk 0:02:09]}  Qb6 {[%clk 0:01:06]} 22. Qd6 {[%clk 0:02:04]}  Qa7 {[%clk 0:00:57]} 23. Qc5 {[%clk 0:01:57]}  Qa4 {[%clk 0:00:47]} 24. Qa5 {[%clk 0:01:53]}  Na2+ {[%clk 0:00:37]} 25. Kd2 {[%clk 0:01:26]}  Qf4+ {[%clk 0:00:21]} 26. Ke2 {[%clk 0:01:24]}  Nb4 {[%clk 0:00:21]} 27. Qa7 {[%clk 0:01:04]}  Nxc2 {[%clk 0:00:18]} 28. Nxc2 {[%clk 0:01:01]}  Rxb3 {[%clk 0:00:19]} 29. Rd2 {[%clk 0:00:47]}  e4 {[%clk 0:00:18]} 30. Qc5 {[%clk 0:00:42]}  exf3+ {[%clk 0:00:18]} 31. Kd1 {[%clk 0:00:41]}  fxg2 {[%clk 0:00:15]} 32. Rg1 {[%clk 0:00:34]}  Qf1+ {[%clk 0:00:14]} 33. Ne1 {[%clk 0:00:35]}  Rfb8 {[%clk 0:00:13]} 34. Rdxg2 {[%clk 0:00:31]}  Qf5 {[%clk 0:00:12]} 35. Qxf5+ {[%clk 0:00:31]}  exf5 {[%clk 0:00:12]} 36. Rf1 {[%clk 0:00:23]}  g6 {[%clk 0:00:12]} 37. h5 {[%clk 0:00:18]}  Rxb2 {[%clk 0:00:12]} 38. hxg6+ {[%clk 0:00:18]}  fxg6 {[%clk 0:00:13]} 39. Rxb2 {[%clk 0:00:15]}  Rxb2 {[%clk 0:00:13]} 40. Nd3 {[%clk 0:00:15]}  Rb1+ {[%clk 0:00:13]} 41. Ke2 {[%clk 0:00:16]}  Rxf1 {[%clk 0:00:13]} 42. Kxf1 {[%clk 0:00:16]}  g5 {[%clk 0:00:14]} 43. Kg2 {[%clk 0:00:17]}  Kg6 {[%clk 0:00:14]} 44. Kf3 {[%clk 0:00:16]}  Bd8 {[%clk 0:00:12]} 45. Ne5+ {[%clk 0:00:16]}  Kf6 {[%clk 0:00:13]} 46. Nd7+ {[%clk 0:00:15]}  Ke6 {[%clk 0:00:13]} 47. Nc5+ {[%clk 0:00:16]}  Kd5 {[%clk 0:00:12]} 48. Nd3 {[%clk 0:00:17]}  Bc7 {[%clk 0:00:12]} 49. Nb4+ {[%clk 0:00:16]}  Ke6 {[%clk 0:00:11]} 50. Ke3 {[%clk 0:00:14]}  Bd6 {[%clk 0:00:10]} 51. Nc6 {[%clk 0:00:13]}  g4 {[%clk 0:00:09]} 52. Nd4+ {[%clk 0:00:13]}  Kf6 {[%clk 0:00:10]} 53. Ke2 {[%clk 0:00:11]}  Ke5 {[%clk 0:00:09]} 54. Nc6+ {[%clk 0:00:11]}  Ke4 {[%clk 0:00:09]} 55. Kf2 {[%clk 0:00:10]}  f4 {[%clk 0:00:09]} 56. Kg2 {[%clk 0:00:08]}  f3+ {[%clk 0:00:08]} 57. Kh1 {[%clk 0:00:06]}  g3 {[%clk 0:00:09]} 58. Kg1 {[%clk 0:00:06]}  Bc5+ {[%clk 0:00:09]} 59. Kh1 {[%clk 0:00:04]}  g2+ {[%clk 0:00:09]} 0-1


[Site "https://www.chess.com"]

[Event "Titled Tuesday Blitz February 01 A 2022"]
[White "Izoria, Zviad"]
[Black "Sarana, Alexey"]
[WhiteFideId "13601733"]
[BlackFideId "24133795"]
[WhiteElo "2806"]
[BlackElo "3095"]
[Result "0-1"]
[Round "03"]
[TimeControl "180+1"]
[Date "2022.02.01"]
[WhiteClock "0:00:08"]
[BlackClock "0:00:08"]

1. Nf3 {[%clk 0:03:00]}  d5 {[%clk 0:01:23]} 2. d4 {[%clk 0:02:57]}  Nf6 {[%clk 0:01:24]} 3. c4 {[%clk 0:02:56]}  e6 {[%clk 0:01:25]} 4. g3 {[%clk 0:02:53]}  Bb4+ {[%clk 0:01:24]} 5. Bd2 {[%clk 0:02:51]}  Be7 {[%clk 0:01:25]} 6. Bg2 {[%clk 0:02:51]}  c6 {[%clk 0:01:26]} 7. Qc2 {[%clk 0:02:49]}  O-O {[%clk 0:01:27]} 8. O-O {[%clk 0:02:49]}  Nbd7 {[%clk 0:01:28]} 9. Bf4 {[%clk 0:02:46]}  b6 {[%clk 0:01:28]} 10. Rd1 {[%clk 0:02:43]}  Bb7 {[%clk 0:01:27]} 11. Nc3 {[%clk 0:02:41]}  dxc4 {[%clk 0:01:27]} 12. Nd2 {[%clk 0:02:39]}  Nd5 {[%clk 0:01:27]} 13. Nxc4 {[%clk 0:02:39]}  Nxf4 {[%clk 0:01:28]} 14. gxf4 {[%clk 0:02:40]}  Qc7 {[%clk 0:01:28]} 15. e3 {[%clk 0:02:39]}  Rfd8 {[%clk 0:01:26]} 16. a3 {[%clk 0:02:33]}  Rac8 {[%clk 0:01:27]} 17. b4 {[%clk 0:02:32]}  Qb8 {[%clk 0:01:26]} 18. Rab1 {[%clk 0:02:29]}  c5 {[%clk 0:01:17]} 19. Bxb7 {[%clk 0:02:25]}  Qxb7 {[%clk 0:01:17]} 20. bxc5 {[%clk 0:02:25]}  Qa6 {[%clk 0:01:17]} 21. Qa4 {[%clk 0:02:05]}  Qxa4 {[%clk 0:01:16]} 22. Nxa4 {[%clk 0:02:06]}  bxc5 {[%clk 0:01:16]} 23. d5 {[%clk 0:02:05]}  exd5 {[%clk 0:01:15]} 24. Rxd5 {[%clk 0:02:06]}  Rc7 {[%clk 0:01:14]} 25. Rbd1 {[%clk 0:01:43]}  Kf8 {[%clk 0:01:07]} 26. Nc3 {[%clk 0:01:43]}  a6 {[%clk 0:01:00]} 27. Ne4 {[%clk 0:01:38]}  Ke8 {[%clk 0:00:55]} 28. Kf1 {[%clk 0:01:29]}  Nf6 {[%clk 0:00:34]} 29. Rxd8+ {[%clk 0:01:07]}  Bxd8 {[%clk 0:00:35]} 30. Nxf6+ {[%clk 0:01:07]}  Bxf6 {[%clk 0:00:34]} 31. Rd6 {[%clk 0:01:08]}  Ra7 {[%clk 0:00:30]} 32. Ke2 {[%clk 0:01:07]}  Be7 {[%clk 0:00:31]} 33. Rb6 {[%clk 0:01:06]}  Kd7 {[%clk 0:00:27]} 34. Kd3 {[%clk 0:00:57]}  Kc7 {[%clk 0:00:18]} 35. Ke4 {[%clk 0:00:52]}  Ra8 {[%clk 0:00:18]} 36. h3 {[%clk 0:00:48]}  h5 {[%clk 0:00:18]} 37. a4 {[%clk 0:00:47]}  f6 {[%clk 0:00:10]} 38. Kf5 {[%clk 0:00:41]}  Bd8 {[%clk 0:00:10]} 39. Ke6 {[%clk 0:00:36]}  h4 {[%clk 0:00:09]} 40. f5 {[%clk 0:00:35]}  Kc8 {[%clk 0:00:08]} 41. e4 {[%clk 0:00:28]}  Bxb6 {[%clk 0:00:07]} 42. Nxb6+ {[%clk 0:00:26]}  Kb7 {[%clk 0:00:07]} 43. Nc4 {[%clk 0:00:09]}  Rd8 {[%clk 0:00:07]} 44. f4 {[%clk 0:00:09]}  Rd4 {[%clk 0:00:07]} 45. Nd6+ {[%clk 0:00:09]}  Kc6 {[%clk 0:00:08]} 46. e5 {[%clk 0:00:08]}  c4 {[%clk 0:00:08]} 0-1


[Site "https://www.chess.com"]

[Event "Titled Tuesday Blitz February 01 A 2022"]
[White "Jacobson, Aaron"]
[Black "Vokhidov, Shamsiddin"]
[WhiteFideId "2089912"]
[BlackFideId "14204223"]
[WhiteElo "2265"]
[BlackElo "2611"]
[Result "0-1"]
[Round "03"]
[TimeControl "180+1"]
[Date "2022.02.01"]
[WhiteClock "0:00:01"]
[BlackClock "0:00:44"]

1. e4 {[%clk 0:03:00]}  c5 {[%clk 0:03:00]} 2. Nf3 {[%clk 0:03:00]}  e6 {[%clk 0:03:00]} 3. d4 {[%clk 0:03:00]}  cxd4 {[%clk 0:03:01]} 4. Bg5 {[%clk 0:03:00]}  f6 {[%clk 0:03:01]} 5. Bc1 {[%clk 0:03:01]}  Nc6 {[%clk 0:03:01]} 6. Nxd4 {[%clk 0:03:01]}  Nxd4 {[%clk 0:03:02]} 7. Qxd4 {[%clk 0:03:01]}  Ne7 {[%clk 0:03:03]} 8. Nc3 {[%clk 0:03:00]}  Nc6 {[%clk 0:03:02]} 9. Qd1 {[%clk 0:02:59]}  a6 {[%clk 0:03:03]} 10. Bd3 {[%clk 0:02:59]}  b5 {[%clk 0:03:02]} 11. O-O {[%clk 0:02:58]}  Bb7 {[%clk 0:03:02]} 12. f4 {[%clk 0:02:57]}  Bc5+ {[%clk 0:03:02]} 13. Kh1 {[%clk 0:02:57]}  O-O {[%clk 0:03:00]} 14. Qh5 {[%clk 0:02:35]}  Qe7 {[%clk 0:02:59]} 15. Bd2 {[%clk 0:02:32]}  Nb4 {[%clk 0:02:58]} 16. f5 {[%clk 0:01:42]}  Nxd3 {[%clk 0:02:54]} 17. cxd3 {[%clk 0:01:42]}  b4 {[%clk 0:02:46]} 18. Ne2 {[%clk 0:01:32]}  Rac8 {[%clk 0:02:27]} 19. Rf3 {[%clk 0:01:28]}  Qf7 {[%clk 0:02:22]} 20. Qg4 {[%clk 0:01:17]}  exf5 {[%clk 0:02:14]} 21. Qxf5 {[%clk 0:01:07]}  d5 {[%clk 0:02:12]} 22. Nf4 {[%clk 0:00:55]}  dxe4 {[%clk 0:02:07]} 23. dxe4 {[%clk 0:00:46]}  Rfe8 {[%clk 0:02:06]} 24. Nd5 {[%clk 0:00:26]}  Rcd8 {[%clk 0:01:57]} 25. Rh3 {[%clk 0:00:12]}  h6 {[%clk 0:01:43]} 26. Rxh6 {[%clk 0:00:05]}  gxh6 {[%clk 0:01:39]} 27. Nxf6+ {[%clk 0:00:04]}  Kh8 {[%clk 0:01:37]} 28. Bxh6 {[%clk 0:00:03]}  Re6 {[%clk 0:01:19]} 29. e5 {[%clk 0:00:02]}  Bc8 {[%clk 0:00:46]} 30. Qh3 {[%clk 0:00:01]}  Rxf6 {[%clk 0:00:44]} 0-1


[Site "https://www.chess.com"]

[Event "Titled Tuesday Blitz February 01 A 2022"]
[White "Jones, Gawain C B"]
[Black "Anuj Shrivatri"]
[WhiteFideId "409561"]
[BlackFideId "35070924"]
[WhiteElo "2657"]
[BlackElo "2038"]
[Result "1-0"]
[Round "03"]
[TimeControl "180+1"]
[Date "2022.02.01"]
[WhiteClock "0:00:05"]
[BlackClock "0:00:10"]

1. Nf3 {[%clk 0:03:00]}  Nf6 {[%clk 0:02:57]} 2. g3 {[%clk 0:03:01]}  g6 {[%clk 0:02:57]} 3. Bg2 {[%clk 0:03:01]}  Bg7 {[%clk 0:02:58]} 4. b3 {[%clk 0:03:01]}  O-O {[%clk 0:02:59]} 5. Bb2 {[%clk 0:03:01]}  d5 {[%clk 0:02:58]} 6. c4 {[%clk 0:03:01]}  Nc6 {[%clk 0:02:55]} 7. cxd5 {[%clk 0:03:00]}  Nxd5 {[%clk 0:02:56]} 8. Bxg7 {[%clk 0:03:00]}  Kxg7 {[%clk 0:02:57]} 9. d4 {[%clk 0:02:52]}  Qd6 {[%clk 0:02:57]} 10. e4 {[%clk 0:02:45]}  Nb6 {[%clk 0:02:29]} 11. d5 {[%clk 0:02:43]}  Qf6 {[%clk 0:02:26]} 12. Nbd2 {[%clk 0:02:36]}  Nd4 {[%clk 0:02:20]} 13. e5 {[%clk 0:02:29]}  Nxf3+ {[%clk 0:02:19]} 14. Nxf3 {[%clk 0:02:30]}  Qf5 {[%clk 0:02:19]} 15. O-O {[%clk 0:02:11]}  Rd8 {[%clk 0:02:18]} 16. Re1 {[%clk 0:01:59]}  Nxd5 {[%clk 0:01:55]} 17. Nd4 {[%clk 0:01:57]}  Qg4 {[%clk 0:01:55]} 18. Bxd5 {[%clk 0:01:39]}  Rxd5 {[%clk 0:01:38]} 19. Nf5+ {[%clk 0:01:39]}  Bxf5 {[%clk 0:01:38]} 20. Qxd5 {[%clk 0:01:40]}  c6 {[%clk 0:01:39]} 21. Qc5 {[%clk 0:01:25]}  Rd8 {[%clk 0:01:20]} 22. Qxe7 {[%clk 0:01:08]}  Rd2 {[%clk 0:01:19]} 23. Qf6+ {[%clk 0:01:03]}  Kg8 {[%clk 0:01:19]} 24. e6 {[%clk 0:00:53]}  Bxe6 {[%clk 0:01:15]} 25. Qc3 {[%clk 0:00:44]}  Rd8 {[%clk 0:00:48]} 26. Re3 {[%clk 0:00:43]}  h5 {[%clk 0:00:26]} 27. Rae1 {[%clk 0:00:43]}  Kh7 {[%clk 0:00:27]} 28. Re4 {[%clk 0:00:28]}  Qf5 {[%clk 0:00:26]} 29. Rf4 {[%clk 0:00:25]}  Qd5 {[%clk 0:00:25]} 30. h4 {[%clk 0:00:21]}  a6 {[%clk 0:00:24]} 31. Kh2 {[%clk 0:00:19]}  Rd7 {[%clk 0:00:24]} 32. a3 {[%clk 0:00:14]}  Kg8 {[%clk 0:00:23]} 33. b4 {[%clk 0:00:14]}  Kh7 {[%clk 0:00:23]} 34. Qf3 {[%clk 0:00:12]}  Qd2 {[%clk 0:00:21]} 35. Re2 {[%clk 0:00:08]}  Qd1 {[%clk 0:00:20]} 36. Qe3 {[%clk 0:00:05]}  Bd5 {[%clk 0:00:19]} 37. Re1 {[%clk 0:00:06]}  Qc2 {[%clk 0:00:19]} 38. Qe8 {[%clk 0:00:04]}  Qd2 {[%clk 0:00:10]} 39. Qxd7 {[%clk 0:00:04]}  Qe2 {[%clk 0:00:10]} 40. Rxf7+ {[%clk 0:00:05]} 1-0


[Site "https://www.chess.com"]

[Event "Titled Tuesday Blitz February 01 A 2022"]
[White "Kosakowski, Jakub"]
[Black "Hansen, Eric"]
[WhiteFideId "1185080"]
[BlackFideId "2606771"]
[WhiteElo "2476"]
[BlackElo "2568"]
[Result "1-0"]
[Round "03"]
[TimeControl "180+1"]
[Date "2022.02.01"]
[WhiteClock "0:00:15"]
[BlackClock "0:00:02"]

1. e3 {[%clk 0:02:54]}  d5 {[%clk 0:03:00]} 2. Nf3 {[%clk 0:02:54]}  Nf6 {[%clk 0:03:00]} 3. c4 {[%clk 0:02:54]}  e6 {[%clk 0:03:00]} 4. Nc3 {[%clk 0:02:55]}  Bd6 {[%clk 0:02:55]} 5. b3 {[%clk 0:02:54]}  O-O {[%clk 0:02:55]} 6. Bb2 {[%clk 0:02:54]}  a6 {[%clk 0:02:52]} 7. Qc2 {[%clk 0:02:52]}  c5 {[%clk 0:02:46]} 8. g4 {[%clk 0:02:31]}  d4 {[%clk 0:02:36]} 9. exd4 {[%clk 0:02:28]}  cxd4 {[%clk 0:02:33]} 10. Nxd4 {[%clk 0:02:28]}  e5 {[%clk 0:02:26]} 11. Nf5 {[%clk 0:02:27]}  Nc6 {[%clk 0:02:26]} 12. g5 {[%clk 0:02:18]}  Bxf5 {[%clk 0:02:18]} 13. Qxf5 {[%clk 0:02:19]}  Nd4 {[%clk 0:02:18]} 14. Qd3 {[%clk 0:02:10]}  Nh5 {[%clk 0:02:18]} 15. Nd5 {[%clk 0:02:08]}  Qxg5 {[%clk 0:02:15]} 16. O-O-O {[%clk 0:02:02]}  Rfe8 {[%clk 0:02:02]} 17. Be2 {[%clk 0:02:00]}  Nf4 {[%clk 0:01:58]} 18. Nxf4 {[%clk 0:01:56]}  Qxf4 {[%clk 0:01:58]} 19. Bxd4 {[%clk 0:01:33]}  exd4 {[%clk 0:01:58]} 20. Bf3 {[%clk 0:01:33]}  Re7 {[%clk 0:01:54]} 21. Rhg1 {[%clk 0:01:25]}  Rae8 {[%clk 0:01:43]} 22. Rg4 {[%clk 0:01:20]}  Qf6 {[%clk 0:01:35]} 23. Bd5 {[%clk 0:01:16]}  Qxf2 {[%clk 0:01:20]} 24. Rxd4 {[%clk 0:01:01]}  Ba3+ {[%clk 0:00:29]} 25. Kc2 {[%clk 0:01:00]}  Re1 {[%clk 0:00:30]} 26. Re4 {[%clk 0:00:43]}  R1xe4 {[%clk 0:00:21]} 27. Bxe4 {[%clk 0:00:44]}  Qf6 {[%clk 0:00:21]} 28. Rb1 {[%clk 0:00:41]}  Rd8 {[%clk 0:00:20]} 29. Qf3 {[%clk 0:00:39]}  Qd4 {[%clk 0:00:15]} 30. Bd5 {[%clk 0:00:39]}  Rd7 {[%clk 0:00:16]} 31. Qf5 {[%clk 0:00:32]}  Rc7 {[%clk 0:00:16]} 32. Qe4 {[%clk 0:00:24]}  Qxe4+ {[%clk 0:00:09]} 33. Bxe4 {[%clk 0:00:25]}  b5 {[%clk 0:00:09]} 34. Bd5 {[%clk 0:00:23]}  g6 {[%clk 0:00:08]} 35. Re1 {[%clk 0:00:22]}  Kg7 {[%clk 0:00:08]} 36. Re8 {[%clk 0:00:22]}  f5 {[%clk 0:00:08]} 37. Ra8 {[%clk 0:00:21]}  bxc4 {[%clk 0:00:08]} 38. Bxc4 {[%clk 0:00:20]}  Bd6 {[%clk 0:00:05]} 39. h3 {[%clk 0:00:19]}  Bf4 {[%clk 0:00:05]} 40. Rxa6 {[%clk 0:00:19]}  Rd7 {[%clk 0:00:06]} 41. d3 {[%clk 0:00:15]}  Kh6 {[%clk 0:00:06]} 42. a4 {[%clk 0:00:14]}  Kg5 {[%clk 0:00:06]} 43. a5 {[%clk 0:00:14]}  Be3 {[%clk 0:00:06]} 44. Re6 {[%clk 0:00:14]}  f4 {[%clk 0:00:06]} 45. b4 {[%clk 0:00:14]}  Kh4 {[%clk 0:00:05]} 46. b5 {[%clk 0:00:15]}  Kg3 {[%clk 0:00:03]} 47. b6 {[%clk 0:00:15]}  f3 {[%clk 0:00:04]} 48. Rxe3 {[%clk 0:00:14]}  Kf2 {[%clk 0:00:02]} 49. Rxf3+ {[%clk 0:00:14]}  Kxf3 {[%clk 0:00:03]} 50. a6 {[%clk 0:00:15]}  Ke3 {[%clk 0:00:02]} 51. a7 {[%clk 0:00:15]}  Rd8 {[%clk 0:00:02]} 52. b7 {[%clk 0:00:15]} 1-0


[Site "https://www.chess.com"]

[Event "Titled Tuesday Blitz February 01 A 2022"]
[White "Kozlov, Gennady"]
[Black "Narayanan.S.L"]
[WhiteFideId "4191668"]
[BlackFideId "5058422"]
[WhiteElo "2392"]
[BlackElo "2494"]
[Result "1-0"]
[Round "03"]
[TimeControl "180+1"]
[Date "2022.02.01"]
[WhiteClock "0:00:45"]
[BlackClock "0:00:55"]

1. d4 {[%clk 0:03:00]}  d5 {[%clk 0:02:59]} 2. c4 {[%clk 0:03:00]}  c6 {[%clk 0:02:59]} 3. Nc3 {[%clk 0:02:58]}  a6 {[%clk 0:02:59]} 4. e3 {[%clk 0:02:58]}  b5 {[%clk 0:02:59]} 5. cxd5 {[%clk 0:02:58]}  cxd5 {[%clk 0:02:58]} 6. Nf3 {[%clk 0:02:58]}  e6 {[%clk 0:02:57]} 7. a3 {[%clk 0:02:58]}  f5 {[%clk 0:02:57]} 8. Bd3 {[%clk 0:02:58]}  Nf6 {[%clk 0:02:57]} 9. O-O {[%clk 0:02:58]}  Bd6 {[%clk 0:02:58]} 10. Ne5 {[%clk 0:02:55]}  O-O {[%clk 0:02:56]} 11. f4 {[%clk 0:02:54]}  Bb7 {[%clk 0:02:53]} 12. Bd2 {[%clk 0:02:53]}  Nbd7 {[%clk 0:02:54]} 13. Be1 {[%clk 0:02:53]}  Nb6 {[%clk 0:02:52]} 14. Bh4 {[%clk 0:02:52]}  Kh8 {[%clk 0:02:52]} 15. Rf3 {[%clk 0:02:51]}  Be7 {[%clk 0:02:35]} 16. Rh3 {[%clk 0:02:49]}  Kg8 {[%clk 0:02:35]} 17. Bxf6 {[%clk 0:02:39]}  Bxf6 {[%clk 0:02:34]} 18. Qh5 {[%clk 0:02:38]}  h6 {[%clk 0:02:34]} 19. Qg6 {[%clk 0:02:29]}  Qe8 {[%clk 0:02:00]} 20. Rxh6 {[%clk 0:02:28]}  Qxg6 {[%clk 0:02:00]} 21. Rxg6 {[%clk 0:02:28]}  Rfc8 {[%clk 0:01:58]} 22. g4 {[%clk 0:02:26]}  fxg4 {[%clk 0:01:57]} 23. Nxg4 {[%clk 0:02:24]}  Kf7 {[%clk 0:01:58]} 24. Kf2 {[%clk 0:02:18]}  Nc4 {[%clk 0:01:53]} 25. Nxf6 {[%clk 0:02:03]}  Nxb2 {[%clk 0:01:49]} 26. Rag1 {[%clk 0:01:43]}  Nxd3+ {[%clk 0:01:48]} 27. Kf3 {[%clk 0:01:43]}  gxf6 {[%clk 0:01:37]} 28. Rg7+ {[%clk 0:01:42]}  Kf8 {[%clk 0:01:38]} 29. Rxb7 {[%clk 0:01:37]}  Rxc3 {[%clk 0:01:36]} 30. Rgg7 {[%clk 0:01:38]}  Ne1+ {[%clk 0:01:23]} 31. Ke2 {[%clk 0:01:35]}  Nc2 {[%clk 0:01:23]} 32. Rbf7+ {[%clk 0:01:33]}  Ke8 {[%clk 0:01:23]} 33. Rb7 {[%clk 0:01:31]}  Rxe3+ {[%clk 0:01:17]} 34. Kd2 {[%clk 0:01:31]}  Kf8 {[%clk 0:01:17]} 35. Rh7 {[%clk 0:01:09]}  Kg8 {[%clk 0:01:13]} 36. Rbg7+ {[%clk 0:01:08]}  Kf8 {[%clk 0:01:13]} 37. Rc7 {[%clk 0:01:05]}  Kg8 {[%clk 0:01:12]} 38. Kxc2 {[%clk 0:01:02]}  Rxa3 {[%clk 0:01:04]} 39. Rhg7+ {[%clk 0:00:55]}  Kh8 {[%clk 0:01:03]} 40. Rh7+ {[%clk 0:00:56]}  Kg8 {[%clk 0:01:03]} 41. Rhg7+ {[%clk 0:00:56]}  Kf8 {[%clk 0:01:03]} 42. Rgf7+ {[%clk 0:00:57]}  Ke8 {[%clk 0:01:02]} 43. Rh7 {[%clk 0:00:52]}  Kd8 {[%clk 0:00:59]} 44. Rcg7 {[%clk 0:00:45]}  Rc8+ {[%clk 0:00:55]} 45. Kb2 {[%clk 0:00:45]} 1-0


[Site "https://www.chess.com"]

[Event "Titled Tuesday Blitz February 01 A 2022"]
[White "Lenderman, Aleksandr"]
[Black "Khachiyan, Melikset"]
[WhiteFideId "2021285"]
[BlackFideId "13300512"]
[WhiteElo "2651"]
[BlackElo "2484"]
[Result "1-0"]
[Round "03"]
[TimeControl "180+1"]
[Date "2022.02.01"]
[WhiteClock "0:01:05"]
[BlackClock "0:00:27"]

1. d4 {[%clk 0:03:00]}  d5 {[%clk 0:02:59]} 2. Nf3 {[%clk 0:02:57]}  Nf6 {[%clk 0:02:59]} 3. c4 {[%clk 0:02:57]}  c6 {[%clk 0:02:59]} 4. cxd5 {[%clk 0:02:56]}  cxd5 {[%clk 0:02:59]} 5. Nc3 {[%clk 0:02:57]}  Nc6 {[%clk 0:02:59]} 6. Bf4 {[%clk 0:02:57]}  Bf5 {[%clk 0:02:55]} 7. e3 {[%clk 0:02:46]}  e6 {[%clk 0:02:55]} 8. Qb3 {[%clk 0:02:46]}  Bb4 {[%clk 0:02:54]} 9. Ne5 {[%clk 0:02:46]}  O-O {[%clk 0:02:48]} 10. Nxc6 {[%clk 0:02:45]}  Bxc3+ {[%clk 0:02:48]} 11. Qxc3 {[%clk 0:02:45]}  bxc6 {[%clk 0:02:48]} 12. Qa3 {[%clk 0:02:45]}  Nd7 {[%clk 0:02:30]} 13. Be2 {[%clk 0:02:31]}  Qb6 {[%clk 0:02:22]} 14. Bd6 {[%clk 0:02:26]}  Rfc8 {[%clk 0:02:21]} 15. Ba6 {[%clk 0:02:23]}  Rd8 {[%clk 0:01:50]} 16. O-O {[%clk 0:02:23]}  Nb8 {[%clk 0:01:40]} 17. Be2 {[%clk 0:02:18]}  a5 {[%clk 0:01:40]} 18. Rfc1 {[%clk 0:02:15]}  Nd7 {[%clk 0:01:37]} 19. Rc3 {[%clk 0:02:13]}  Rdc8 {[%clk 0:01:36]} 20. Rac1 {[%clk 0:02:07]}  f6 {[%clk 0:01:31]} 21. Qb3 {[%clk 0:01:58]}  Qxb3 {[%clk 0:01:20]} 22. axb3 {[%clk 0:01:58]}  c5 {[%clk 0:01:06]} 23. Bb5 {[%clk 0:01:49]}  e5 {[%clk 0:01:02]} 24. dxc5 {[%clk 0:01:49]}  Kf7 {[%clk 0:00:43]} 25. c6 {[%clk 0:01:49]}  Ke6 {[%clk 0:00:39]} 26. Ba3 {[%clk 0:01:18]}  Nb8 {[%clk 0:00:34]} 27. c7 {[%clk 0:01:18]}  Nd7 {[%clk 0:00:31]} 28. f3 {[%clk 0:01:05]}  Ra7 {[%clk 0:00:30]} 29. e4 {[%clk 0:01:05]}  dxe4 {[%clk 0:00:27]} 30. Bc4# {[%clk 0:01:05]} 1-0


[Site "https://www.chess.com"]